Cogmind - Beta 11 @@@ ROGUE MODE // 2022.03.31 @ 00:56:06 Player: Beico Result: Self-destructed Performance ------------- Evolutions (2) 1000 Regions Visited (3) 600 Robots Destroyed (9) 45 Value Destroyed (97) 97 Prototype IDs (0) 0 Alien Tech Used (0) 0 Bonus (0) 0 TOTAL SCORE: 1742 Bonus ------- None Cogmind --------- Core Integrity 360/550 Matter 148/300 Energy 250/250 System Corruption 0% Temperature Cool (0) Movement Flying (115) Ox2 Location -8/Materials Parts ------- > --- POWER (1) -------- Ion Engine > --- PROPULSION (4) --- Surge Thruster > --- UTILITY (4) ------ Hacking Suite Hacking Suite Hacking Suite > --- WEAPON (2) ------- Autogun > --- INVENTORY (5) ---- Wheel Signal Interpreter Peak State ------------ > --- POWER ------------ Ion Engine > --- PROPULSION ------- Flight Unit Flight Unit Flight Unit Flight Unit > --- UTILITY ---------- Hacking Suite Hacking Suite Hacking Suite Hacking Suite > --- WEAPON ----------- Autogun Grenade Launcher > --- INVENTORY -------- Wheel Signal Interpreter [Rating: 20] Favorites ----------- Power Ion Engine Engine Ion Engine Propulsion Flight Unit Leg Aluminum Leg Flight Unit Flight Unit Utility Hacking Suite Storage Small Storage Unit Hackware Hacking Suite Weapon EM Pulse Gun Energy Gun EM Pulse Gun Ballistic Gun Autogun Launcher Grenade Launcher Build | -11 -10 -9 -8 ------- Run | Scr Mat Mat Mat Slots Evolved 4 | . . 2 2 Power . | . . . . Propulsion 2 | . . 1 1 Utility 2 | . . 1 1 Weapon . | . . . . Parts Attached 15 | . 6 4 5 Power 1 | . 1 . . Engine 1 | . 1 . . Core . | . . . . Reactor . | . . . . Propulsion 7 | . 4 1 2 Treads . | . . . . Leg 1 | . 1 . . Wheel . | . . . . Hover . | . . . . Flight 6 | . 3 1 2 Utility 4 | . . 3 1 Device . | . . . . Storage . | . . . . Processor . | . . . . Hackware 4 | . . 3 1 Protection . | . . . . Artifact . | . . . . Weapon 3 | . 1 . 2 Energy Gun 1 | . 1 . . Energy Cannon . | . . . . Ballistic Gun 1 | . . . 1 Ballistic Cannon . | . . . . Launcher 1 | . . . 1 Special Weapon . | . . . . Impact Weapon . | . . . . Slashing Weapon . | . . . . Piercing Weapon . | . . . . Special Melee Weapon . | . . . . Unidentified Prototypes . | . . . . Parts Lost 6 | . . . 6 Power . | . . . . Propulsion 4 | . . . 4 Utility 1 | . . . 1 Weapon 1 | . . . 1 Highest Loss Streak 4 | . . . 4 To Critical Strikes . | . . . . Average Slot Usage (%) 78 | . 68 74 90 Engine 11 | . 14 11 9 Leg 3 | . 9 . . Flight 28 | . 17 33 33 Storage 2 | . 5 . . Hackware 16 | . . 19 30 Energy Gun 11 | . 21 11 2 Ballistic Gun 2 | . . . 6 Launcher 2 | . . . 7 Naked Turns . | . . . . Heaviest Build 13 | 13 13 7 11 Greatest Support 20 | 20 20 12 16 Greatest Overweight (x) 4 | . 4 . 2 Average Overweight (x) . | . . . . Largest Inventory Capacity 8 | . 8 5 5 Average Capacity 5 | . 6 5 5 Most Carried 8 | . 8 5 4 Average Carried 4 | . 5 4 2 Final Capacity 8 | 8 5 5 5 Final Carried 6 | 6 5 5 2 Class Distribution -------------------- 42% | Mutant 34% | Hacker-Sprinter 22% | Hacker-Mutant Dominant Class ---------------- Mutant | -10/Materials Hacker-Mutant | -9/Materials Hacker-Sprinter | -8/Materials Resources | -11 -10 -9 -8 ----------- Run | Scr Mat Mat Mat Matter Collected 237 | 190 19 . 28 Remotely . | . . . . Salvage Created 156 | . 52 . 104 Parts 21 | . 5 . 16 Haulers Intercepted 1 | . . . 1 Recyclers Shooed . | . . . . Parts Field Recycled . | . . . . Retrieved Matter . | . . . . Parts Self-Destructed . | . . . . Prevented . | . . . . Kills | -11 -10 -9 -8 ------- Run | Scr Mat Mat Mat Combat Hostiles Destroyed 7 | . 3 . 4 Guns 6 | . 3 . 3 AOE 1 | . . . 1 Classes Destroyed 4 | . 1 . 3 Worker 1 | . . . 1 Hauler 1 | . . . 1 Swarmer 5 | . 3 . 2 Cutter 2 | . . . 2 Best Kill Streak 4 | . 3 . 4 Combat Bots Only 3 | . 3 . 2 Max Kills in Single Turn 2 | . 1 . 2 Gunslinging . | . . . . Exploded 1 | . . . 1 Melee . | . . . . Uniques/NPCs Destroyed . | . . . . Combat | -11 -10 -9 -8 -------- Run | Scr Mat Mat Mat Damage Taken 639 | . 140 25 474 Core 259 | . 54 15 190 Absorbed by Shields . | . . . . Core Remaining (%) 91 | 100 78 96 . Volleys Fired 25 | . 10 . 15 Largest 1 | . 1 . 1 Hottest 40 | . 40 . 30 Shots Fired 25 | . 10 . 15 Gun 23 | . 10 . 13 Cannon . | . . . . Launcher 2 | . . . 2 Special . | . . . . Kinetic 13 | . . . 13 Thermal . | . . . . Explosive 2 | . . . 2 Electromagnetic 10 | . 10 . . Robot Hit Streak 7 | . 4 . 7 Robot Miss Streak 4 | . 1 . 4 Penetration Max . | . . . . Secondary Targets . | . . . . Shots Hit Robots 13 | . 7 . 6 Core Hits 13 | . 3 . 10 Critical Kills . | . . . . Critical Parts Destroyed . | . . . . Critical Strikes . | . . . . Melee Attacks . | . . . . Impact . | . . . . Slashing . | . . . . Piercing . | . . . . Sneak Attacks . | . . . . Combat Hostiles . | . . . . Follow-up Attacks . | . . . . Damage Inflicted 566 | . 128 . 438 Guns 174 | . 80 . 94 Cannons . | . . . . Explosions 392 | . 48 . 344 Melee . | . . . . Ramming . | . . . . Kinetic 94 | . . . 94 Thermal 48 | . 48 . . Explosive 344 | . . . 344 Electromagnetic 80 | . 80 . . Impact . | . . . . Slashing . | . . . . Piercing . | . . . . Highest Corruption . | . . . . Average Corruption . | . . . . Corruption Purged . | . . . . Corruption Blocked . | . . . . Overload Shots . | . . . . Overflow Damage 9 | . . . 9 Projectiles . | . . . . Explosions 9 | . . . 9 Melee . | . . . . Knockbacks . | . . . . Impact . | . . . . Kinetic . | . . . . Secondary . | . . . . Self-Inflicted Damage 46 | . . . 46 Shots 2 | . . . 2 Rammed . | . . . . Targets Rammed . | . . . . Kicked . | . . . . Crushed . | . . . . Highest Temperature 18 | . 18 . 8 Average Temperature 7 | . 8 . 3 Received Heat Transfer 84 | . 6 6 72 Siege Activations . | . . . . Robots Corrupted . | . . . . Combat Hostiles . | . . . . Parts Fried . | . . . . Impact Corruptions . | . . . . Robots Melted . | . . . . Combat Hostiles . | . . . . Parts Melted . | . . . . Heat Transferred 50 | . 50 . . Parts Sabotaged . | . . . . Parts Stolen . | . . . . Parts Stripped . | . . . . Power Chain Reactions 1 | . 1 . . Missiles Intercepted . | . . . . Alert | -11 -10 -9 -8 ------- Run | Scr Mat Mat Mat Peak Influence 207 | . 100 174 207 Initial 79 | . . 42 79 Average 66 | . 20 100 86 Maximum Alert Level 1 | . . . 1 Low Security (%) 99 | . 100 100 98 Level 1 . | . . . 1 Level 2 . | . . . . Level 3 . | . . . . Level 4 . | . . . . Level 5 . | . . . . High Security . | . . . . Max Security . | . . . . Squads Dispatched 10 | . 1 2 7 Investigation 3 | . . 1 2 Extermination . | . . . . Reinforcement 7 | . 1 1 5 Assault . | . . . . Garrison . | . . . . Intercept . | . . . . Searches Triggered . | . . . . Construction Impeded . | . . . . Haulers Reinforced . | . . . . Active Scanning Responses . | . . . . Cargo Convoy Interrupts . | . . . . Stealth | -11 -10 -9 -8 --------- Run | Scr Mat Mat Mat Distress Signals 1 | . . 1 . Communications Jammed . | . . . . Distress Signals . | . . . . Times Spotted 40 | . 5 10 25 Peak Tracking Total 19 | . 4 8 19 Tactical Retreats 4 | . . 1 3 Traps | -11 -10 -9 -8 ------- Run | Scr Mat Mat Mat Traps Triggered . | . . . . Indirectly . | . . . . Trap Hack Attempts . | . . . . Triggered . | . . . . Disarmed . | . . . . Reprogrammed . | . . . . Reused . | . . . . Traps Extracted . | . . . . Installed . | . . . . Triggered . | . . . . Machines | -11 -10 -9 -8 ---------- Run | Scr Mat Mat Mat Machines Disabled 1 | . . . 1 Max in Single Turn 1 | . . . 1 Machines Sabotaged . | . . . . Garrisons Compromised . | . . . . Overloaded Fab Kills . | . . . . Hacking | -11 -10 -9 -8 --------- Run | Scr Mat Mat Mat Machines Accessed 4 | . . 2 2 Terminals 3 | . . 1 2 Fabricators . | . . . . Repair Stations . | . . . . Recycling Units 1 | . . 1 . Scanalyzers . | . . . . Garrison Access . | . . . . Total Hacks 15 | . . 7 8 Successful 11 | . . 5 6 Failed 4 | . . 2 2 Catastrophic . | . . . . Database Lockouts . | . . . . Manual . | . . . . Terminals 12 | . . 4 8 Fabricators . | . . . . Repair Stations . | . . . . Recycling Units 3 | . . 3 . Scanalyzers . | . . . . Garrison Access . | . . . . Terminal Hacks 9 | . . 3 6 Branch Access Points 1 | . . 1 . Alert Level 4 | . . 1 3 Unreport Threat 1 | . . . 1 Maintenance Status 1 | . . . 1 Zone Layout 2 | . . 1 1 Fabricator Hacks . | . . . . Repair Station Hacks . | . . . . Recycling Unit Hacks 2 | . . 2 . Process 1 | . . 1 . Retrieve Matter 1 | . . 1 . Scanalyzer . | . . . . Garrison Access Hacks . | . . . . Unauthorized Hacks . | . . . . Terminals . | . . . . Fabricators . | . . . . Repair Stations . | . . . . Recycling Units . | . . . . Scanalyzers . | . . . . Garrison Access . | . . . . Data Cores Recovered . | . . . . Used . | . . . . Hacking Detections 4 | . . 2 2 Full Trace Events 3 | . . 1 2 Feedback Events 1 | . . . 1 Hackware Fried 1 | . . . 1 Feedback Blocked . | . . . . Robot Schematics Acquired . | . . . . Robots Built . | . . . . Authchips . | . . . . Time . | . . . . Total Robot Build Rating . | . . . . Part Schematics Acquired . | . . . . Parts Built . | . . . . Authchips . | . . . . Time . | . . . . Total Part Build Rating . | . . . . Parts Repaired . | . . . . Time . | . . . . Parts Recycled . | . . . . Recycled Matter 8 | . . 8 . Retrieved Matter 8 | . . 8 . Retrieved Components . | . . . . Parts Scanalyzed . | . . . . Part Schematics Acquired . | . . . . Parts Damaged . | . . . . Bothacking | -11 -10 -9 -8 ------------ Run | Scr Mat Mat Mat Used RIF Installer . | . . . . Robots Hacked . | . . . . Non-combat . | . . . . Combat . | . . . . Robot Hacks Applied . | . . . . Relay Couplers Released . | . . . . Fabnet Peak Effective % . | . . . . Robots Rewired . | . . . . Allies Hacked . | . . . . Hacks Repelled . | . . . . Allies | -11 -10 -9 -8 -------- Run | Scr Mat Mat Mat Total Allies . | . . . . Largest Group . | . . . . Highest-Rated Group . | . . . . Highest-Rated Ally . | . . . . Total Orders . | . . . . Ally Attacks . | . . . . Total Damage . | . . . . Kills . | . . . . Allies Corrupted . | . . . . Allies Melted . | . . . . Intel | -11 -10 -9 -8 ------- Run | Scr Mat Mat Mat Robot Analysis Total . | . . . . Derelict Logs Recovered . | . . . . Drone Launches . | . . . . Drone Recoveries . | . . . . Exploration | -11 -10 -9 -8 ------------- Run | Scr Mat Mat Mat Turns Passed 358 | . 127 99 132 Spaces Moved 634 | 1 144 198 291 Core 1 | . 1 . . Treads . | . . . . Legs 32 | 1 31 . . Wheels . | . . . . Hover . | . . . . Flight 601 | . 112 198 291 Fastest Speed 29 | 120 37 34 29 Average Speed 38 | 120 58 34 31 Slowest Speed 290 | 120 290 34 115 Overloaded Moves . | . . . . Propulsion Burnouts . | . . . . Robots Hopped 13 | . 4 3 6 Cave-ins Triggered . | . . . . Exploration Rate (%) 21 | 2 28 26 31 Regions Visited 3 Branch Regions . Pre-discovered Areas . | . . . . Known Exits Taken . | . . . . Unknown Exits Taken 3 | 1 1 1 . Scrap Searched . | . . . . Spaces Dug . | . . . . Terrain Destroyed 13 | . 4 . 9 Melee . | . . . . Projectile . | . . . . AOE 13 | . 4 . 9 Terrain Rammed . | . . . . Walls Destroyed . | . . . . Machines Disabled . | . . . . Actions | -11 -10 -9 -8 --------- Run | Scr Mat Mat Mat Total 712 | . 176 224 312 Wait 31 | . 2 25 4 Move 605 | . 135 191 279 Hop 13 | . 4 3 6 Pick Up 6 | . 4 1 1 Fast Attach 9 | . 5 3 1 Attach 5 | . . 1 4 Detach 3 | . 2 . 1 Swap 1 | . 1 . . Drop 14 | . 13 . 1 Fire 25 | . 10 . 15 Melee . | . . . . Ram . | . . . . Kick . | . . . . Crush . | . . . . Escape Stasis . | . . . . Rewire . | . . . . Trap . | . . . . Miscellaneous . | . . . . Route ------- -11/Scrapyard -10/Materials -9/Materials (discovered 3 exits: *Mat / Min x2) -8/Materials History --------- Turn | Location | Event 1 | -11/Scrapyard | Discovered new exit (range 0) 1 | -11/Scrapyard | Entered Materials 121 | -10/Materials | Discovered new exit (range 16) 128 | -10/Materials | Entered another Materials area 128 | -9/Materials | Evolved 2 slots: Propulsion x1, Utility x1 162 | -9/Materials | Identified exit to Mines 225 | -9/Materials | Discovered new exit (range 4) 227 | -9/Materials | Entered another Materials area 227 | -8/Materials | Evolved 2 slots: Propulsion x1, Utility x1 271 | -8/Materials | Hacking Suite fried by hacking feedback 359 | -8/Materials | Self-destructed Last Messages --------------- 00327_ Penetrated by Slug. 00327_ C-17 Slicer destroyed. 00328_ Acquired 20 matter. 00329_ Acquired Surge Thruster. 00339_ K-01 Serf collects debris. 00340_ Flight Unit destroyed. 00350_ U-05 Engineer destroyed. 00351_ S-10 Pest destroyed. 00351_ A-02 Transporter destroyed. 00351_ K-01 Serf collects debris. 00353_ K-01 Serf destroyed. 00353_ Flight Unit destroyed. 00353_ Destroyed Flight Unit. 00353_ Grenade Launcher destroyed. 00353_ Destroyed Grenade Launcher. 00354_ Flight Unit destroyed. 00355_ K-01 Serf collects debris. 00355_ S-10 Pest destroyed. 00356_ ALERT: Hostiles spotted, dispatching reinforcements to Terminal M007. Map ----- +----------------------------------------------------+ | ?# #??????# ###/### #????????????????? | | ?# #??????# /#????????????????? | | ## +??????# ?????????????? | | ## #??????# #????????????????? | | ## #??????# ####### #????????????????? | | +??????#######???????? ##????????????????? | | #### #?????????????????????????????????????????? | | #??# #?????????????????????????????????????????? | | #### #?????????????????????????????????????????? | | ## #?????????????????????????????????????????? | | ## #?????????????????????????????????????????? | | " ## #?????????????????????????????????????????? | | " ## ######+##+#???????????????????????????????? | | " ## #???????????????????????????????? | | "/## ###########?????????????????????? | | "=## # #?#+####??????????????? | | %## + # #??????????????? | | #### # # #??????????????? | | ???# ######## # # ???????????????? | | ???# #??????# ######+# #[ ?????????????????? | | ???# #??????# #????# # ==[ ###### ??????????? | | ???# #??????# #????#g g=[%[ ???????????? | | ???# #??????# #????# %ss #?????????????????? | | ???# ?????? ???## [! #?????????????????? | | ???#####????# g###= k #?????????????????? | | ?????????? + g Y % @ ##?????????????????? | | ????????????# l###! #??????????????????? | | ????????????# ???######## #??????????????????? | | ?????????????? ???????????+#??????????????????? | | ?????????????? ???????????????????????????????? | | ?????????????? ???????????????????????????????? | | ?????????????? ???????????????????????????????? | | ?????????????? ???????????????????????????????? | | ??????????????# #???????????????????????????????? | | ????????????????????????????????????????????????? | | ????????????????????????????????????????????????? | | ????????????????????????????????????????????????? | | ????????????????????????????????????????????????? | | ????????????????????????????????????????????????? | | ????????????????????????????????????????????????? | | ????????????????????????????????????????????????? | | ????????????????????????????????????????????????? | | ????????????????????????????????????????????????? | | ????????????????????????????????????????????????? | | ????????????????????????????????????????????????? | | ????????????????????????????????????????????????? | | ????????????????????????????????????????????????? | | ????????????????????????????????????????????????? | | ????????????????????????????????????????????????? | | ????????????????????????????????????????????????? | +----------------------------------------------------+ Best States ------------- Heat Dissipation 31 Energy Generation 10 Energy Capacity 250 Matter Stores 290 Matter Capacity 300 Sight Range 16 Terrain Scan Density 10 Evasion (%) 64 Offensive Hacking 40 Item Schematics ----------------- None Robot Schematics ------------------ None Fabricated ------------ Nothing Alien Tech Used ----------------- None Achievements -------------- None Challenges ------------ None Game ------ Seed SignalTrackerFlamer Manual? 0 Play Time 00:20:51 Cumulative 28.1 hours Start 2022.03.31 @ 00:36:47 End 2022.03.31 @ 00:56:06 Sessions 1 Manual Loads 0 Difficulty Rogue Special Mode None Game No. 46 Rogue 46 Adventurer 0 Explorer 0 Win Type - Total 0 Types 0/0/0/0/0/0/0/0/0 Lore% 17 Gallery% 31 Achievement% 28 Wizard Run 0 Options --------- ASCII 0 Keyboard 1 Movement Numpad Keybinds 0 Fullscreen 1 Font 18/SmallcapsGlow Map View 76x50 Tactical HUD 1 Map Filters NONE Filters NONE Steam 1 RUN: 0818e2b5-6138-4ada-b80c-e5b83f5106d8